bitfinex-derivatives/quotes_BNBF0:USTF0_20250425
["timestamp","ask_amount","ask_price","bid_price","bid_amount"]
[1745617561120,0.28961746,601.92,599.94,0.30552897]
[1745617561424,1.27103964,601.99,599.95,0.30552897]
[1745617561624,1.27103964,601.99,599.96,0.30552897]
[1745617561826,1.27103964,601.99,599.97,0.30552897]
[1745617562027,1.27103964,601.97,599.98,0.30552897]
[1745617562224,1.27103964,601.97,599.99,0.30552897]
[1745617562423,1.27103964,601.97,600.0,0.30552897]
[1745617562624,0.28961023,601.96,600.01,0.30550895]
[1745617562825,0.28961023,601.96,600.02,0.30550895]
[1745617563027,0.28961023,601.96,600.03,0.30550895]
[1745617563229,0.28961023,601.96,600.04,0.30550895]
[1745617563430,0.28961023,601.96,599.96,0.30550895]
[1745617563630,0.28961023,601.96,599.97,0.30550895]
[1745617563930,0.28961023,601.96,599.95,0.28961023]
[1745617563931,0.28961023,601.96,599.98,0.30550895]
[1745617564129,0.28961023,601.96,599.99,0.30550895]
[1745617564331,0.28961023,601.96,600.0,0.30550895]
[1745617564531,1.56064987,601.96,600.01,0.30550895]
[1745617564730,1.56064987,601.96,600.02,0.30550895]
[1745617564932,1.56064987,601.96,600.03,0.30550895]
[1745617565132,1.56064987,601.96,599.95,0.28961023]
[1745617565133,1.56064987,601.96,600.04,0.30550895]
[1745617565333,1.56064987,601.96,599.96,0.30550895]
[1745617565533,1.56064987,601.96,599.97,0.30550895]
[1745617565734,1.56064987,601.96,599.95,0.28961023]
[1745617565929,1.56064987,601.96,599.96,0.30551825]
[1745617566233,1.56064987,601.96,599.95,0.28961023]
[1745617566434,1.56064987,601.96,599.96,0.30551888]
[1745617566733,1.56064987,601.96,599.97,0.30551888]
[1745617566929,1.56064987,601.96,599.98,0.30551888]
[1745617567134,1.56064987,601.96,599.99,0.30551888]
[1745617567335,1.27103964,601.94,600.0,0.30551888]
[1745617567533,1.27103964,601.94,600.01,0.30551888]
[1745617567729,1.27103964,601.94,600.02,0.30551888]
[1745617568034,1.27103964,601.94,600.03,0.30551888]
[1745617568227,1.27103964,601.94,600.04,0.30551888]
[1745617568433,1.27103964,601.94,600.05,0.30551888]
[1745617568629,0.28961746,601.93,600.06,0.30551888]
[1745617568834,0.28961746,601.93,600.07,0.30551888]
[1745617569034,0.28961746,601.93,599.98,0.28961746]
[1745617569035,0.28961746,601.93,600.08,0.30551888]
[1745617569231,0.28961746,601.93,600.09,0.30551888]
[1745617569532,0.28961746,601.93,600.1,0.30551888]
[1745617569731,0.28961746,601.93,600.11,0.30551888]
[1745617569935,0.28961746,601.93,600.12,0.30551888]
[1745617570136,1.27103964,601.79,600.13,0.30551888]
[1745617570333,1.27103964,601.79,600.14,0.30551888]
[1745617570534,1.27103964,601.79,600.15,0.30551888]
[1745617570735,1.27103964,601.79,600.16,0.30551888]
[1745617570936,1.27103964,601.79,600.17,0.30551888]
[1745617571132,1.27103964,601.79,600.18,0.30551888]
[1745617571436,1.27103964,601.79,600.19,0.30551888]
[1745617571634,1.27103964,601.79,599.98,0.28961746]
[1745617571635,1.27103964,601.79,600.2,0.30551888]
[1745617571830,1.27103964,601.79,600.21,0.30551888]
[1745617572037,1.27103964,601.79,599.99,0.30551888]
[1745617572236,1.27103964,601.79,600.0,0.30551888]
[1745617572537,1.27103964,601.76,600.01,0.30550952]
[1745617572738,1.27103964,601.76,600.02,0.30550952]
[1745617572932,1.27103964,601.76,600.03,0.30550952]
[1745617573237,1.27103964,601.76,600.04,0.30550952]
[1745617573438,1.27103964,601.76,600.05,0.30550952]
[1745617573635,1.27103964,601.76,600.06,0.30550952]
[1745617573838,1.27103964,601.76,599.97,1.0591997]
[1745617574037,1.27103964,601.76,599.98,0.30550776]
[1745617574238,1.27103964,601.76,599.99,0.30550776]
[1745617574539,1.27103964,601.74,600.01,1.0591997]
[1745617574732,1.27103964,601.74,600.02,0.30550776]
[1745617574938,1.27103964,601.74,600.03,0.30550776]
[1745617575236,1.27103964,601.74,600.04,0.30550776]
[1745617575438,1.27103964,601.74,600.05,0.30550776]
[1745617575633,1.27103964,601.74,600.06,0.30550776]
[1745617575840,1.27103964,601.74,600.07,0.30550776]
[1745617576038,1.27103964,601.74,600.08,0.30550776]
[1745617576236,1.27103964,601.74,600.09,0.30550776]
[1745617576434,1.27103964,601.74,600.1,0.30550776]
[1745617576639,1.27103964,601.73,600.11,0.30550776]
[1745617576832,1.27103964,601.73,600.12,0.30550776]
[1745617577139,1.27103964,601.73,600.13,0.30550776]
[1745617577338,1.27103964,601.73,600.14,0.30550776]
[1745617577534,1.27103964,601.73,600.15,0.30550776]
[1745617577739,1.27103964,601.73,600.03,0.30550776]
[1745617577938,1.27103964,601.73,600.04,0.30550776]
[1745617578139,1.27103964,601.73,600.05,0.30550776]
[1745617578340,1.27103964,601.73,600.06,0.30550776]
[1745617578640,1.27103964,601.85,600.07,0.30550755]
[1745617578833,1.27103964,601.85,600.08,0.30550755]
[1745617579038,1.27103964,601.85,600.09,0.30550755]
[1745617579240,1.27103964,601.85,600.1,0.30550755]
[1745617579536,1.27103964,601.85,600.11,0.30550755]
[1745617579741,1.27103964,601.85,600.12,0.30550755]
[1745617580041,1.27103964,601.85,600.13,0.30550755]
[1745617580237,1.27103964,601.85,600.14,0.30550855]
[1745617580438,1.27103964,601.85,599.94,1.0591997]
[1745617580639,1.27103964,601.8,600.07,0.28961626]
[1745617580837,1.27103964,601.8,600.08,0.30550806]
[1745617581038,1.27103964,601.8,600.09,0.30550806]
[1745617581235,1.27103964,601.8,599.99,0.30550806]
[1745617581541,1.27103964,601.8,600.0,0.30550806]
[1745617581841,1.27103964,601.8,600.01,0.30550806]
[1745617582042,1.27103964,601.8,600.02,0.30550806]
[1745617582235,1.27103964,601.8,600.03,0.30550806]
[1745617582440,1.27103964,601.8,600.04,0.30550806]
[1745617582636,1.27103964,601.8,600.05,0.30550806]
[1745617582837,1.27103964,601.8,600.06,0.30550806]
[1745617583039,1.27103964,601.8,600.07,0.30550806]
[1745617583238,1.27103964,601.91,600.01,0.28961746]
[1745617583440,1.27103964,601.91,600.02,0.30550908]
[1745617583640,1.27103964,601.91,600.03,0.30550908]
[1745617583841,1.27103964,601.91,600.04,0.30550908]
[1745617584039,1.27103964,601.91,600.05,0.30550908]
[1745617584338,1.27103964,601.91,600.06,0.30550908]
[1745617584545,1.27103964,601.91,600.07,0.30550908]
[1745617584744,1.27103964,601.91,600.08,0.30550908]
[1745617584945,1.27103964,601.91,600.09,0.30550908]
[1745617585144,1.27103964,601.91,600.1,0.30550908]
[1745617585444,1.27103964,601.91,600.11,0.30550908]
[1745617585646,1.27103964,601.9,600.12,0.30550908]
[1745617585943,1.27103964,601.9,600.13,0.30550908]
[1745617586144,1.27103964,601.9,600.14,0.30550908]
[1745617586344,1.27103964,601.9,600.15,0.30550908]
[1745617586645,1.27103964,601.9,600.16,0.30550908]
[1745617586839,1.27103964,601.9,600.06,0.30550908]
[1745617587044,1.27103964,601.9,600.07,0.30550908]
[1745617587244,1.27103964,601.9,600.08,0.30550908]
[1745617587545,1.27103964,601.9,600.09,0.30550908]
[1745617587741,1.27103964,601.9,600.1,0.30550908]
[1745617587947,1.27103964,601.9,600.11,0.30550908]
[1745617588149,1.27103964,601.83,600.12,0.30550908]
[1745617588349,1.27103964,601.83,600.13,0.30550908]
[1745617588549,1.27103964,601.83,600.14,0.30550908]
[1745617588742,1.27103964,601.83,600.15,0.30550908]
[1745617588944,1.27103964,601.83,600.09,0.30550908]
[1745617589146,1.27103964,601.83,600.1,0.30550908]
[1745617589449,1.27103964,601.83,600.11,0.30550908]
[1745617589745,1.27103964,601.83,600.12,0.30550908]
[1745617589951,1.27103964,601.83,600.13,0.30550908]
[1745617590253,1.27103964,601.83,600.14,0.30550908]
[1745617590449,1.27103964,601.83,600.09,0.30550908]
[1745617590649,1.27103964,601.83,600.1,0.30550908]
[1745617590953,1.27103964,601.83,600.08,0.28960541]
[1745617591146,1.27103964,601.83,600.09,0.30551368]
[1745617591547,1.27103964,601.83,599.96,0.30551368]
[1745617591751,1.27103964,601.83,600.08,0.2896018]
[1745617591951,1.27103964,601.83,599.97,0.30551368]
[1745617591952,1.27103964,601.83,600.09,0.30551368]
[1745617592149,1.27103964,601.83,600.1,0.30551368]
[1745617592350,1.27103964,601.9,600.11,0.30551368]
[1745617592555,1.27103964,601.9,599.9,0.30551368]
[1745617592756,1.27103964,601.9,600.09,0.28961746]
[1745617592956,1.27103964,601.9,600.1,0.30551368]
[1745617593150,1.27103964,601.9,599.9,0.30551368]
[1745617593354,1.27103964,601.9,599.91,0.30551368]
[1745617593553,1.27103964,601.9,599.92,0.30551368]
[1745617593757,1.27103964,601.9,599.93,0.30551368]
[1745617594057,1.27103964,601.9,599.89,1.0591997]
[1745617594253,1.27103964,601.9,599.94,0.28961626]
[1745617594453,1.27103964,601.9,599.95,0.30553058]
[1745617594657,1.27103964,601.9,599.96,0.30553058]
[1745617594857,1.27103964,601.9,599.97,0.30553058]
[1745617595157,1.27103964,601.9,599.98,0.30553058]
[1745617595355,1.27103964,601.86,599.99,0.30553058]
[1745617595559,1.27103964,601.86,600.0,0.30553058]
[1745617595859,1.27103964,601.86,600.01,0.30553305]
[1745617596159,1.27103964,601.86,600.02,0.30553305]
[1745617596359,1.27103964,601.86,600.03,0.30553305]
[1745617596560,1.27103964,601.86,599.95,0.30553305]
[1745617596759,1.27103964,601.86,599.96,0.30553305]
[1745617596960,1.27103964,601.86,599.97,0.30553305]
[1745617597256,1.27103964,601.86,599.98,0.30553337]
[1745617597460,1.27103964,601.86,599.99,0.30553337]
[1745617597655,1.27103964,601.86,600.0,0.30553337]
[1745617597861,1.27103964,601.86,600.01,0.30553337]
[1745617598061,1.27103964,601.86,600.02,0.30553337]
[1745617598261,1.27103964,601.86,600.03,0.30553337]
[1745617598462,1.27103964,601.86,599.86,0.30553337]
[1745617598657,0.60780438,608.86,599.97,0.2896259]
[1745617598658,1.27103964,601.87,599.97,0.2896259]
[1745617598860,1.27103964,601.87,599.98,0.30553277]
[1745617599159,1.27103964,601.87,599.99,0.30553277]
[1745617599462,1.27103964,601.87,600.0,0.30553277]
[1745617599660,1.27103964,601.87,600.01,0.30553277]
[1745617599861,1.27103964,601.87,600.02,0.30553277]
[1745617600060,1.27103964,601.87,600.03,0.30553277]
[1745617600257,1.27103964,601.87,599.99,0.28962711]
[1745617600564,1.27103964,601.9,600.0,0.30552835]
[1745617600864,1.27103964,601.9,600.01,0.30552835]
[1745617601060,1.27103964,601.9,600.02,0.30552835]
[1745617601258,1.27103964,601.9,600.03,0.30552835]
[1745617601461,1.27103964,601.9,600.04,0.30552835]
[1745617601658,1.27103964,601.9,600.05,0.30552835]
[1745617601960,1.27103964,601.9,600.06,0.30552835]
[1745617602158,1.27103964,601.9,600.07,0.30552835]
[1745617602360,1.27103964,601.74,600.08,0.30552835]
[1745617602561,1.27103964,601.74,600.09,0.30552835]
[1745617602763,1.27103964,601.74,600.1,0.30552835]
[1745617602963,1.27103964,601.74,600.11,0.30552835]
[1745617603264,1.27103964,601.74,600.12,0.30552835]
[1745617603466,1.27103964,601.74,600.13,0.30552835]
[1745617603664,1.27103964,601.74,599.97,0.30552835]
[1745617603861,1.27103964,601.74,599.98,0.30552835]
[1745617604060,1.27103964,601.74,599.99,0.30552835]
[1745617604260,1.27103964,601.74,600.0,0.30552835]
[1745617604460,1.27103964,601.74,600.01,0.30552835]
[1745617604665,1.27103964,601.82,600.02,0.30552835]
[1745617604864,1.27103964,601.82,600.03,0.30552835]
[1745617605064,1.27103964,601.82,600.04,0.30552835]
[1745617605264,1.27103964,601.82,600.05,0.30552835]
[1745617605563,1.27103964,601.82,599.99,0.28962469]
[1745617605765,1.27103964,601.82,600.0,0.30552294]
[1745617606566,1.27103964,601.82,599.91,0.30552294]
[1745617606765,1.27103964,601.82,599.92,0.30552318]
[1745617607066,1.27103964,601.82,599.93,0.30552318]
[1745617607263,1.27103964,601.82,599.94,0.30552318]
[1745617607465,1.27103964,601.82,599.95,0.30552318]
[1745617607766,1.27103964,601.82,599.96,0.30552318]
[1745617607966,1.27103964,601.82,599.97,0.30552318]
[1745617608166,0.28962228,601.93,599.97,0.30552318]
[1745617608369,0.28962228,601.93,599.98,0.30552426]
[1745617608561,0.28962228,601.93,599.95,0.30552426]
[1745617608765,0.28962228,601.93,599.96,0.30552426]
[1745617608962,0.28962228,601.93,599.97,0.30552426]
[1745617609165,0.28962228,601.93,599.98,0.30552426]
[1745617609365,1.27103964,602.0,599.95,0.30552426]
[1745617609567,1.27103964,602.0,599.96,0.30552426]
[1745617609868,1.27103964,602.0,599.97,0.30552426]
[1745617610063,1.27103964,602.0,599.98,0.30552426]
[1745617610261,1.27103964,602.0,599.99,0.30552426]
[1745617610465,1.27103964,602.0,599.8,0.30552426]
[1745617610663,0.28961385,601.99,599.96,0.28961385]
[1745617610863,0.28961385,601.99,599.97,0.30552426]
[1745617611065,0.28961385,601.99,599.98,0.30552426]
[1745617611267,0.28961385,601.99,599.99,0.30552426]
[1745617611460,0.28961385,601.99,599.8,0.30552426]
[1745617611665,0.28961385,601.99,599.81,0.30552426]
[1745617611867,0.28961385,601.99,599.82,0.30552426]
[1745617612066,0.28961385,601.99,599.83,0.30552426]
[1745617612265,1.56065349,601.99,599.84,0.30552426]
[1745617612465,1.27103964,601.99,599.85,0.30552426]
[1745617612666,1.27103964,601.99,599.86,0.30552426]
[1745617612866,1.27103964,601.99,599.87,0.30552426]
[1745617613060,1.27103964,601.99,599.88,0.30552426]
[1745617613261,1.27103964,601.99,599.89,0.30552426]
[1745617613461,1.27103964,601.99,599.9,0.30552426]
[1745617613667,1.27103964,601.99,599.91,0.30552426]
[1745617613968,0.28961144,601.98,599.92,0.30552426]
[1745617614166,0.28961144,601.98,599.93,0.30552426]
[1745617614364,1.56065108,601.98,599.94,0.30552426]
[1745617614565,1.56065108,601.98,599.95,0.30552426]
[1745617614763,1.56065108,601.98,599.96,0.30552426]
[1745617614970,1.56065108,601.98,599.97,0.30552426]
[1745617615168,1.56065108,601.98,599.95,1.261]
[1745617615169,1.56065108,601.98,599.98,0.30552426]
[1745617615369,1.27103964,601.98,599.99,0.30552426]
[1745617615569,1.27103964,601.98,600.0,0.30552426]
[1745617615762,1.27103964,601.98,599.95,1.261]
[1745617615763,1.27103964,601.98,600.01,0.30552426]
[1745617615963,1.27103964,601.98,600.02,0.30552426]
[1745617616167,1.27103964,601.98,600.03,0.30552579]
[1745617616367,1.27103964,601.98,600.04,0.30552579]
[1745617616568,1.27103964,601.98,600.05,0.30552579]
[1745617616771,0.28959698,601.97,600.06,0.30552579]
[1745617616968,0.28959698,601.97,600.07,0.30552579]
[1745617617173,0.28959698,601.97,600.08,0.30552579]
[1745617617374,0.28959698,601.97,600.09,0.30552579]
[1745617617575,1.27103964,601.79,599.95,1.261]
[1745617617768,1.27103964,601.79,599.96,0.30551924]
[1745617617969,1.27103964,601.79,599.97,0.30551924]
[1745617618172,1.27103964,601.79,599.98,0.30551924]
[1745617618370,1.27103964,601.79,599.99,0.30551924]
[1745617618569,1.27103964,601.79,600.0,0.30551924]
[1745617618773,1.27103964,601.79,600.01,0.30551924]
[1745617618973,1.27103964,601.79,600.02,0.30551924]
[1745617619268,1.27103964,601.79,600.03,0.30551924]
[1745617619470,1.27103964,601.79,600.04,0.30551924]
[1745617619875,0.28961746,601.94,599.95,1.55061746]
[1745617619876,1.27103964,601.74,600.05,0.30551924]
[1745617620076,1.27103964,601.74,600.06,0.30551924]
[1745617620275,1.27103964,601.74,600.07,0.30551924]
[1745617620472,1.27103964,601.74,600.08,0.30551924]
[1745617620676,1.27103964,601.74,600.09,0.30551924]
[1745617620876,1.27103964,601.74,600.1,0.30551924]
[1745617621077,1.27103964,601.74,600.11,0.30551924]
[1745617621279,1.27103964,601.74,600.12,0.30551924]
[1745617621479,1.27103964,601.74,600.13,0.30551924]
[1745617621777,1.27103964,601.74,600.14,0.30551924]
[1745617621977,1.27103964,601.74,600.15,0.30551924]
[1745617622178,1.27103964,601.74,600.16,0.30551924]
[1745617622378,1.27103964,601.74,600.17,0.30551924]
[1745617622578,1.27103964,601.73,600.18,0.30551924]
[1745617622775,1.27103964,601.73,600.19,0.30551924]
[1745617622980,1.27103964,601.73,600.2,0.30551924]
[1745617623180,1.27103964,601.73,600.21,0.30551924]
[1745617623381,1.27103964,601.73,600.22,0.30554491]
[1745617623679,1.27103964,601.73,600.03,0.28964036]
[1745617623680,1.27103964,601.73,600.23,0.30554491]
[1745617623879,1.27103964,601.73,600.04,0.30554491]
[1745617624079,1.27103964,601.73,600.05,0.30554491]
[1745617624280,1.27103964,601.73,600.06,0.30554491]
[1745617624480,1.27103964,601.73,600.07,0.30554491]
[1745617624681,1.27103964,601.73,600.08,0.30554491]
[1745617624982,1.27103964,601.6,600.09,0.30554491]
[1745617625280,1.27103964,601.6,600.1,0.30554491]
[1745617625480,1.27103964,601.6,600.11,0.30554491]
[1745617625681,1.27103964,601.6,600.12,0.30554491]
[1745617625874,1.27103964,601.6,600.13,0.30554491]
[1745617626079,1.27103964,601.6,600.14,0.30554491]
[1745617626281,1.27103964,601.6,600.15,0.30554491]
[1745617626476,1.27103964,601.6,600.16,0.30554491]
[1745617626776,1.27103964,601.6,600.17,0.30554491]
[1745617626978,1.27103964,601.6,600.18,0.30554491]
[1745617627281,1.2630965,601.6,600.19,0.30554491]
[1745617627476,1.2630965,601.58,600.2,0.30554491]
[1745617627676,1.2630965,601.58,600.21,0.30554491]
[1745617627877,1.2630965,601.58,600.22,0.30554491]
[1745617628077,1.2630965,601.58,600.23,0.30554754]
[1745617628279,1.2630965,601.58,600.24,0.30554754]
[1745617628481,1.2630965,601.58,600.25,0.30554754]
[1745617628678,1.2630965,601.58,600.26,0.30554754]
[1745617628882,1.2630965,601.58,600.27,0.30554754]
[1745617629083,1.2630965,601.58,600.28,0.30554754]
[1745617629277,1.2630965,601.58,600.29,0.30554754]
[1745617629483,1.2630965,601.58,600.11,0.30554754]
[1745617629682,2.16253272,601.84,600.1,0.28965844]
[1745617629683,2.16253272,601.67,600.3,0.30554754]
[1745617629981,2.16253272,601.67,600.31,0.30554754]
[1745617630182,2.16253272,601.67,600.32,0.30554754]
[1745617630482,2.16253272,601.67,600.33,0.30554754]
[1745617630682,2.16253272,601.67,600.34,0.30554754]
[1745617631581,3.75824846,611.02,600.34,0.30554754]
[1745617631582,2.16253272,601.7,600.34,0.30554754]
[1745617632378,2.16253272,601.7,600.33,1.122]
[1745617634184,2.16253272,601.85,600.34,0.30558346]
[1745617634381,0.2896259,601.76,600.34,0.30558346]
[1745617634781,2.16253272,602.17,600.34,0.30558346]
[1745617635977,0.28956927,602.16,600.34,0.30558346]
[1745617636383,2.16253272,602.17,600.34,0.30558346]
[1745617637181,0.28956927,602.16,600.34,0.30558346]
[1745617637688,2.16253272,601.79,600.34,0.30558346]
[1745617638186,2.16253272,601.79,600.33,1.122]
[1745617639688,2.16253272,602.03,600.33,1.122]
[1745617640189,0.28961505,601.78,600.33,1.122]
[1745617640383,2.16253272,602.03,600.33,1.122]
[1745617641290,0.28958613,602.02,600.33,1.122]
[1745617644291,0.28958613,602.02,600.33,1.11449392]
[1745617644492,0.28958613,602.02,600.12,0.28961505]
[1745617644693,0.28958613,602.02,600.13,0.30560297]
[1745617645294,0.28958613,602.02,600.12,0.28961505]
[1745617645495,0.28958613,602.02,599.53,1.0591997]
[1745617645496,2.16253272,602.05,600.13,0.30560328]
[1745617645689,0.28960903,602.01,600.12,0.28960903]
[1745617645889,0.28960903,602.01,600.13,0.30560328]
[1745617646996,0.28960903,602.01,600.14,0.30560142]
[1745617647188,2.45214175,602.01,600.13,0.30560142]
[1745617648596,2.16253272,602.01,600.13,0.30560142]
[1745617648795,2.16253272,602.01,599.52,0.30560142]
[1745617648994,2.16253272,602.01,599.53,0.30560142]
[1745617649196,0.28968738,602.0,600.12,0.28968738]
[1745617649396,0.28968738,602.0,600.13,0.30560142]
[1745617649591,0.28968738,602.0,599.52,0.30560142]
[1745617649796,0.28968738,602.0,599.53,0.30560142]
[1745617649991,0.28968738,602.0,599.54,0.30560142]
[1745617650297,0.28968738,602.0,599.55,0.30560142]
[1745617650698,0.28968738,602.0,599.56,0.59528639]
[1745617650897,0.28968738,602.0,599.57,0.30560142]
[1745617651101,0.28968738,602.0,599.58,0.30560142]
[1745617651294,0.28968738,602.0,599.59,0.30560142]
[1745617651494,2.16253272,602.03,599.51,1.0591997]
[1745617651799,2.16253272,602.03,599.57,0.28967894]
[1745617652001,2.16253272,602.03,599.58,0.30559319]
[1745617652196,2.16253272,602.03,599.59,0.30559319]
[1745617652398,2.16253272,602.03,599.6,0.30559319]
[1745617652597,0.28967773,602.02,599.61,0.30559319]
[1745617652800,2.16253272,601.99,599.62,0.30559319]
[1745617652995,2.16253272,601.99,599.63,0.30559319]
[1745617653300,2.16253272,601.99,599.64,0.30559179]
[1745617653500,2.16253272,601.99,599.65,0.30559179]
[1745617653699,2.16253272,601.99,599.66,0.30559179]
[1745617653999,2.16253272,601.99,599.67,0.30559179]
[1745617654201,2.16253272,601.99,599.68,0.30559179]
[1745617654399,2.16253272,601.99,599.69,0.30559179]
[1745617654600,0.28968256,601.98,599.7,0.30559179]
[1745617654800,0.28968256,601.98,599.71,0.30559179]
[1745617655001,0.28968256,601.98,599.72,0.30559179]
[1745617655201,0.28968256,601.98,599.73,0.30559179]
[1745617655397,0.28968256,601.98,599.61,0.28968256]
[1745617655398,0.28968256,601.98,599.74,0.30559179]
[1745617655701,0.28968256,601.98,599.75,0.30559179]
[1745617655900,0.28968256,601.98,599.76,0.30559179]
[1745617656103,0.28968256,601.98,599.77,0.30559179]
[1745617656297,0.28968256,601.98,599.61,0.28968256]
[1745617656497,0.28968256,601.98,599.62,0.30558081]
[1745617656797,0.28968256,601.98,599.63,0.30558081]
[1745617657001,0.28968256,601.98,599.64,0.30558081]
[1745617657297,0.28968256,601.98,599.65,0.30558081]
[1745617657503,2.16253272,602.16,599.66,0.30558081]
[1745617657800,2.16253272,602.16,599.67,0.30558081]
[1745617658100,2.16253272,602.16,599.68,0.30558081]
[1745617658301,2.16253272,602.16,599.69,0.30558081]
[1745617658501,2.16253272,602.16,599.7,0.30558081]
[1745617658702,0.28965603,602.15,599.71,0.30558081]
[1745617659001,0.28965603,602.15,599.72,0.30558081]
[1745617659200,0.28965603,602.15,599.73,0.30558081]
[1745617659398,0.28965603,602.15,599.62,0.28967291]
[1745617659599,0.28965603,602.15,599.63,0.30558387]
[1745617659901,0.28965603,602.15,599.64,0.30558387]
[1745617660097,0.28965603,602.15,599.62,0.28967291]
[1745617660098,1.26926478,601.92,599.65,0.30558387]
[1745617660297,1.26926478,601.92,599.66,0.30558387]
[1745617660498,1.26926478,601.92,599.67,0.30558387]
[1745617660700,1.26926478,601.92,599.68,0.30558387]
[1745617660902,1.26926478,601.92,599.59,1.0591997]
[1745617661203,1.26926478,601.92,599.6,0.30558007]
[1745617661403,1.26926478,601.92,599.61,0.30558007]
[1745617661598,1.26926478,601.92,599.62,0.30558007]
[1745617661802,0.28968858,601.91,599.63,0.30558007]
[1745617662004,0.28968858,601.91,599.64,0.30558007]
[1745617662203,0.28968858,601.91,599.65,0.30558007]
[1745617662398,0.28968858,601.91,599.66,0.30559547]
[1745617662601,0.28968858,601.91,599.67,0.30559547]
[1745617662798,0.28968858,601.91,599.68,0.30559547]
[1745617662998,0.28968858,601.91,599.69,0.30559547]
[1745617663300,0.28968858,601.91,599.7,0.30559547]
[1745617663499,0.28968858,601.91,599.71,0.30559547]
[1745617663799,0.28968858,601.91,599.72,0.30559547]
[1745617664001,0.28968858,601.91,599.61,0.28968858]
[1745617664304,1.55895336,601.91,599.62,0.30559516]
[1745617664499,1.55895336,601.91,599.63,0.30559516]
[1745617664698,1.55895336,601.91,599.64,0.30559516]
[1745617664898,1.55895336,601.91,599.65,0.30559516]
[1745617665099,1.55895336,601.91,599.66,0.30559516]
[1745617665303,1.55895336,601.91,599.67,0.30559516]
[1745617665603,1.55895336,601.91,599.68,0.30559516]
[1745617665797,1.55895336,601.91,599.61,1.34888828]
[1745617666304,1.55895336,601.91,599.62,0.30559443]
[1745617666499,1.26926478,601.91,599.63,0.30559443]
[1745617666701,1.26926478,601.91,599.64,0.30559443]
[1745617666900,0.60780438,608.77,599.65,0.30559443]
[1745617666901,1.26926478,601.89,599.65,0.30559443]
[1745617667099,1.26926478,601.89,599.66,0.30559443]
[1745617667302,1.26926478,601.89,599.67,0.30559443]
[1745617667603,0.28969341,601.88,599.68,0.30559443]
[1745617667797,0.28969341,601.88,599.69,0.30559443]
[1745617667999,0.28969341,601.88,599.7,0.30559443]
[1745617668201,0.28969341,601.88,599.71,0.30559443]
[1745617668398,0.28969341,601.88,599.72,0.30559443]
[1745617668703,0.28969341,601.88,599.73,0.30559443]
[1745617668904,0.28969341,601.88,599.74,0.30559443]
[1745617669199,0.28969341,601.88,599.75,0.30559443]
[1745617669404,1.26926478,601.81,599.76,0.30559443]
[1745617669601,1.26926478,601.81,599.74,1.0591997]
[1745617669602,1.26926478,601.81,599.77,0.30559443]
[1745617669799,1.26926478,601.81,599.78,0.30559443]
[1745617670002,1.26926478,601.81,599.79,0.30559443]
[1745617670202,0.28968376,601.8,599.8,0.30559443]
[1745617670402,0.28968376,601.8,599.81,0.30559443]
[1745617670604,0.28968376,601.8,599.74,1.0591997]
[1745617670797,0.28968376,601.8,599.75,0.30558447]
[1745617671000,0.28968376,601.8,599.76,0.30558447]
[1745617671201,0.28968376,601.8,599.77,0.30558447]
[1745617671403,0.28968376,601.8,599.78,0.30558447]
[1745617671605,0.28968376,601.8,599.75,0.30558447]
[1745617671808,1.26926478,601.58,599.9,1.0591997]
[1745617672005,1.26926478,601.58,599.91,0.30558447]
[1745617672206,1.26926478,601.58,599.92,0.30562254]
[1745617672506,1.26926478,601.58,599.9,1.0591997]
[1745617672507,1.26926478,601.58,599.93,0.30562254]
[1745617672708,1.26926478,601.58,599.91,0.30562254]
[1745617672907,1.26926478,601.58,599.92,0.30562254]
[1745617673100,1.26926478,601.58,599.91,0.30562254]
[1745617673305,1.26926478,601.58,599.92,0.30562254]
[1745617673504,1.26926478,601.58,599.91,0.30562254]
[1745617673702,1.26926478,601.58,599.92,0.30562834]
[1745617673905,1.26926478,601.58,599.91,0.30562834]
[1745617674106,1.26926478,601.58,599.92,0.30562834]
[1745617674308,1.26926478,601.58,599.91,0.30562834]
[1745617674506,1.26926478,601.58,599.92,0.30562834]
[1745617674710,1.26926478,601.58,599.91,0.30562834]
[1745617674910,1.26926478,601.58,599.92,0.30562834]
[1745617675212,0.28969944,601.72,599.93,0.30562608]
[1745617675410,1.26926478,601.99,599.79,0.30562608]
[1745617675607,1.26926478,601.99,599.8,0.30562608]
[1745617675812,1.26926478,601.99,599.81,0.30562608]
[1745617676007,0.28970305,601.98,599.82,0.30562608]
[1745617676205,0.28970305,601.98,599.83,0.30562608]
[1745617676405,0.28970305,601.98,599.84,0.30562608]
[1745617676609,0.28970305,601.98,599.78,0.28970305]
[1745617676808,0.28970305,601.98,599.79,0.30562773]
[1745617677508,1.26926478,601.94,599.79,0.30562773]
[1745617678611,1.26926478,601.94,599.8,0.30562773]
[1745617678811,0.2896705,601.93,599.81,0.30562773]
[1745617679012,0.2896705,601.93,599.82,0.30562773]
[1745617679210,0.2896705,601.93,599.79,0.30562773]
[1745617679411,0.2896705,601.93,599.8,0.30562773]
[1745617679608,1.26926478,601.81,599.79,0.30562773]
[1745617679813,1.26926478,601.81,599.8,0.30563528]
[1745617680114,1.26926478,601.81,599.81,0.30563528]
[1745617680317,1.26926478,601.81,599.79,0.30563528]
[1745617680507,1.26926478,601.81,599.78,0.2896705]
[1745617680508,1.26926478,601.81,599.8,0.30563528]